fUST/lending_fUST_20250403
["ID","MTS","AMOUNT","RATE_DAILY","PERIOD"]
[357065594,1743684642912,-500.0,0.0001726,2]
[357065595,1743684642922,-500.0,0.0001726,2]
[357065596,1743684642935,-539.36478124,0.0001726,2]
[357065597,1743684642944,-500.0,0.0001726,2]
[357065598,1743684642954,-500.0,0.0001726,2]
[357065599,1743684642964,-574.63054,0.0001726,2]
[357065600,1743684642974,-574.63054,0.0001726,2]
[357065601,1743684642985,-574.63054,0.0001726,2]
[357065602,1743684642996,-574.63054,0.0001726,2]
[357065603,1743684643006,-574.63054,0.0001726,2]
[357065604,1743684643017,-151.0,0.0001726,2]
[357065605,1743684643027,-151.0,0.0001726,2]
[357065606,1743684643044,-500.0,0.0001726,2]
[357065607,1743684643062,-500.0,0.0001726,2]
[357065608,1743684643076,-500.0,0.0001726,2]
[357065609,1743684643093,-500.0,0.0001726,2]
[357065610,1743684643111,-533.2611557,0.0001726,2]
[357065611,1743684643128,-500.0,0.0001726,2]
[357065612,1743684643147,-500.0,0.0001726,2]
[357065613,1743684643162,-500.0,0.0001726,2]
[357065614,1743684643181,-500.0,0.0001726,2]
[357065615,1743684643198,-500.0,0.0001726,2]
[357065616,1743684643213,-500.0,0.0001726,2]
[357065617,1743684643228,-500.0,0.0001726,2]
[357065618,1743684643242,-500.0,0.0001726,2]
[357065619,1743684643259,-500.0,0.0001726,2]
[357065620,1743684643276,-500.0,0.0001726,2]
[357065621,1743684643295,-500.0,0.0001726,2]
[357065622,1743684643316,-500.0,0.0001726,2]
[357065623,1743684643328,-500.0,0.0001726,2]
[357065624,1743684643341,-500.0,0.0001726,2]
[357065625,1743684643357,-500.0,0.0001726,2]
[357065626,1743684643373,-500.0,0.0001726,2]
[357065627,1743684643385,-500.0,0.0001726,2]
[357065628,1743684643400,-500.0,0.0001726,2]
[357065629,1743684643413,-543.51,0.0001726,2]
[357065630,1743684643424,-151.0,0.0001726,2]
[357065631,1743684643440,-151.0,0.0001726,2]
[357065632,1743684643459,-151.0,0.0001726,2]
[357065633,1743684643472,-500.0,0.0001726,2]
[357065634,1743684643485,-500.0,0.0001726,2]
[357065635,1743684643498,-1333.2,0.0001726,2]
[357065636,1743684643512,-939.32,0.0001726,2]
[357065637,1743684643526,-500.0,0.0001726,2]
[357065639,1743684643538,-776.84,0.0001726,2]
[357065641,1743684643552,-500.0,0.0001726,2]
[357065644,1743684643566,-1578.42,0.0001726,2]
[357065646,1743684643578,-500.0,0.0001726,2]
[357065648,1743684643590,-737.08,0.0001726,2]
[357065650,1743684643602,-500.0,0.0001726,2]
[357065653,1743684643616,-658.75,0.0001726,2]
[357065655,1743684643629,-804.66,0.0001726,2]
[357065658,1743684643641,-500.0,0.0001726,2]
[357065660,1743684643654,-500.0,0.0001726,2]
[357065662,1743684643668,-500.0,0.0001726,2]
[357065663,1743684643683,-681.42,0.0001726,2]
[357065664,1743684643696,-1658.04,0.0001726,2]
[357065665,1743684643710,-500.0,0.0001726,2]
[357065666,1743684643725,-500.0,0.0001726,2]
[357065667,1743684643739,-500.0,0.0001726,2]
[357065668,1743684643752,-3229.2,0.0001726,2]
[357065669,1743684643765,-644.71,0.0001726,2]
[357065670,1743684643779,-1492.91,0.0001726,2]
[357065671,1743684643792,-500.0,0.0001726,2]
[357065673,1743684643805,-500.0,0.0001726,2]
[357065675,1743684643818,-500.0,0.0001726,2]
[357065677,1743684643831,-4305.14,0.0001726,2]
[357065679,1743684643844,-1043.2,0.0001726,2]
[357065682,1743684643857,-500.0,0.0001726,2]
[357065684,1743684643870,-5897.63,0.0001726,2]
[357065686,1743684643882,-194.86,0.0001726,2]
[357065688,1743684643894,-500.0,0.0001726,2]
[357065689,1743684643907,-500.0,0.0001726,2]
[357065690,1743684643921,-2101.76,0.0001726,2]
[357065692,1743684643936,-500.0,0.0001726,2]
[357065694,1743684643950,-1070.64,0.0001726,2]
[357065696,1743684643961,-500.0,0.0001726,2]
[357065698,1743684643974,-562.06,0.0001726,2]
[357065700,1743684643983,-500.0,0.0001726,2]
[357065702,1743684643993,-500.0,0.0001726,2]
[357065704,1743684644003,-500.0,0.0001726,2]
[357065706,1743684644014,-500.0,0.0001726,2]
[357065708,1743684644024,-591.48,0.0001726,2]
[357065724,1743684644137,-500.0,0.0001726,2]
[357065727,1743684644197,-1155.32,0.0001726,2]
[357065730,1743684644208,-542.63,0.0001726,2]
[357065732,1743684644218,-500.0,0.0001726,2]
[357065733,1743684644227,-500.0,0.0001726,2]
[357065735,1743684644237,-3432.19,0.0001726,2]
[357065737,1743684644246,-1341.41,0.0001726,2]
[357065740,1743684644256,-643.06,0.0001726,2]
[357065741,1743684644266,-1613.8,0.0001726,2]
[357065743,1743684644275,-500.0,0.0001726,2]
[357065745,1743684644284,-500.0,0.0001726,2]
[357065746,1743684644293,-500.0,0.0001726,2]
[357065747,1743684644303,-675.31,0.0001726,2]
[357065748,1743684644312,-616.6,0.0001726,2]
[357065749,1743684644322,-500.0,0.0001726,2]
[357065750,1743684644332,-500.0,0.0001726,2]
[357065751,1743684644341,-500.0,0.0001726,2]
[357065752,1743684644351,-1262.01,0.0001726,2]
[357065753,1743684644362,-500.0,0.0001726,2]
[357065754,1743684644371,-500.0,0.0001726,2]
[357065755,1743684644381,-500.0,0.0001726,2]
[357065756,1743684644391,-500.0,0.0001726,2]
[357065757,1743684644400,-500.0,0.0001726,2]
[357065758,1743684644410,-3696.95,0.0001726,2]
[357065759,1743684644420,-500.0,0.0001726,2]
[357065760,1743684644432,-500.0,0.0001726,2]
[357065761,1743684644442,-500.0,0.0001726,2]
[357065762,1743684644452,-500.0,0.0001726,2]
[357065763,1743684644462,-101437.56,0.0001726,2]
[357065764,1743684644472,-500.0,0.0001726,2]
[357065765,1743684644482,-714.09,0.0001726,2]
[357065766,1743684644492,-500.0,0.0001726,2]
[357065767,1743684644501,-546.55,0.0001726,2]
[357065768,1743684644511,-500.0,0.0001726,2]
[357065769,1743684644521,-500.0,0.0001726,2]
[357065770,1743684644531,-500.0,0.0001726,2]
[357065771,1743684644540,-563.87,0.0001726,2]
[357065772,1743684644549,-500.0,0.0001726,2]
[357065773,1743684644558,-282.955479,0.0001726,2]
[357065774,1743684644567,-282.955479,0.0001726,2]
[357065775,1743684644577,-591.16,0.0001726,2]
[357065776,1743684644586,-282.955479,0.0001726,2]
[357065777,1743684644597,-282.955479,0.0001726,2]
[357065778,1743684644607,-746.01,0.0001726,2]
[357065779,1743684644617,-282.955479,0.0001726,2]
[357065780,1743684644626,-282.955479,0.0001726,2]
[357065781,1743684644637,-2067.33042663,0.00017265,2]
[357065782,1743684644646,-151.0,0.000173,2]
[357065783,1743684644656,-151.0,0.000173,2]
[357065784,1743684644666,-500.0,0.00017351,2]
[357065785,1743684644676,-247.55598867,0.00017351,2]
[357065786,1743684644687,-500.0,0.00017351,2]
[357065787,1743684644697,-500.0,0.00017351,2]
[357065788,1743684644707,-644.04241883,0.00017351,2]
[357065789,1743684644716,-163.86152474,0.00017351,2]
[357065790,1743684644726,-154.60691033,0.00017351,2]
[357065791,1743684644736,-500.0,0.00017351,2]
[357065792,1743684644746,-500.77150048,0.00017351,2]
[357065793,1743684644756,-214.76006865,0.00017351,2]
[357065794,1743684644766,-269.76046851,0.00017351,2]
[357065795,1743684644780,-500.0,0.00017351,2]
[357065796,1743684644790,-177.35724172,0.00017351,2]
[357065797,1743684644800,-152.64277048,0.00017351,2]
[357065798,1743684644810,-500.0,0.00017351,2]
[357065799,1743684644821,-502.47879986,0.00017351,2]
[357065800,1743684644830,-500.0,0.00017351,2]
[357065801,1743684644839,-500.0,0.00017351,2]
[357065802,1743684644849,-500.0,0.00017351,2]
[357065803,1743684644859,-500.0,0.00017351,2]
[357065804,1743684644869,-10362.73995921,0.00017359,2]
[357065805,1743684644880,-502.78162634,0.00017367,2]
[357065806,1743684644891,-502.35079568,0.0001738,2]
[357065807,1743684644901,-500.0,0.0001738,2]
[357065808,1743684644912,-500.60314445,0.0001738,2]
[357065809,1743684644925,-500.0,0.00017391,2]
[357065810,1743684644939,-3002.8,0.00017391,2]
[357065811,1743684644950,-3002.8,0.00017391,2]
[357065812,1743684644960,-3002.8,0.00017391,2]
[357065813,1743684644973,-3002.8,0.00017391,2]
[357065814,1743684644985,-500.0,0.00017391,2]
[357065815,1743684644995,-652.34952862,0.00017391,2]
[357065816,1743684645004,-170.81079912,0.00017391,2]
[357065817,1743684645015,-167.94736757,0.00017391,2]
[357065818,1743684645025,-247.63442934,0.00017391,2]
[357065819,1743684645035,-778.87294205,0.00017391,2]
[357065820,1743684645045,-200.46188643,0.00017391,2]
[357065821,1743684645058,-500.0,0.00017391,2]
[357065822,1743684645068,-500.0,0.00017391,2]
[357065823,1743684645078,-500.0,0.00017391,2]
[357065824,1743684645088,-150.19541237,0.00017391,2]
[357065825,1743684645098,-151.0,0.000174,2]
[357065826,1743684645108,-151.0,0.00017439,2]
[357065827,1743684645118,-407.68876985,0.00017442,2]
[357065828,1743684645128,-500.0,0.00017442,2]
[357065829,1743684645138,-501.08546396,0.00017465,2]
[357065830,1743684645149,-500.0,0.00017465,2]
[357065831,1743684645159,-282.955479,0.00017492,2]
[357065832,1743684645168,-282.955481,0.00017492,2]
[357065833,1743684645178,-500.0,0.00017492,2]
[357065834,1743684645191,-610.77517242,0.00017492,2]
[357065835,1743684645201,-193.35120426,0.00017492,2]
[357065836,1743684645211,-160.89503563,0.00017499,2]
[357065837,1743684645221,-500.0,0.00017499,2]
[357065839,1743684645231,-395.615424,0.00017499,2]
[357065841,1743684645241,-420.67216709,0.00017499,2]
[357065843,1743684645251,-500.0,0.00017499,2]
[357065845,1743684645260,-500.0,0.00017499,2]
[357065847,1743684645270,-500.0,0.00017499,2]
[357065849,1743684645280,-421.08312567,0.00017499,2]
[357065851,1743684645290,-501.58407249,0.00017499,2]
[357065853,1743684645299,-500.0,0.00017499,2]
[357065855,1743684645309,-406.56972624,0.00017499,2]
[357065856,1743684645319,-500.0,0.00017499,2]
[357065857,1743684645329,-500.0,0.00017499,2]
[357065858,1743684645338,-502.45414757,0.00017499,2]
[357065859,1743684645347,-500.0,0.00017499,2]
[357065863,1743684645357,-596.78080289,0.00017499,2]
[357065867,1743684645367,-500.0,0.00017499,2]
[357065871,1743684645378,-156.26115822,0.00017499,2]
[357065876,1743684645388,-500.0,0.00017499,2]
[357065879,1743684645398,-166.84763239,0.00017499,2]
[357065881,1743684645408,-500.0,0.00017499,2]
[357065884,1743684645420,-500.0,0.00017499,2]
[357065887,1743684645433,-267.9235406,0.00017499,2]
[357065889,1743684645442,-211.51328357,0.00017499,2]
[357065894,1743684645452,-500.0,0.00017499,2]
[357065897,1743684645461,-500.0,0.00017499,2]
[357065900,1743684645471,-3337.133116,0.000175,4]
[357065902,1743684645482,-151.0,0.000175,2]
[357065904,1743684645492,-500.0,0.00017528,2]
[357065905,1743684645503,-205.1088276,0.00017528,2]
[357065907,1743684645513,-206.33310002,0.00017528,2]
[357065908,1743684645523,-500.0,0.00017528,2]
[357065910,1743684645532,-500.0,0.00017528,2]
[357065911,1743684645542,-500.0,0.00017528,2]
[357065913,1743684645552,-203.71263412,0.00017528,2]
[357065914,1743684645562,-230.18777752,0.00017528,2]
[357065915,1743684645572,-518.65749177,0.00017534,2]
[357065916,1743684645583,-500.0,0.00017534,2]
[357065917,1743684645594,-500.0,0.00017534,2]
[357065918,1743684645604,-461.96,0.00017534,2]
[357065919,1743684645615,-500.0,0.00017534,2]
[357065920,1743684645624,-500.0,0.00017534,2]
[357065921,1743684645634,-500.0,0.00017534,2]
[357065922,1743684645644,-500.0,0.00017534,2]
[357065923,1743684645654,-500.0,0.00017534,2]
[357065925,1743684645664,-500.0,0.00017534,2]
[357065927,1743684645674,-500.0,0.00017534,2]
[357065929,1743684645686,-500.0,0.00017534,2]
[357065931,1743684645696,-500.0,0.00017534,2]
[357065933,1743684645706,-500.0,0.00017534,2]
[357065935,1743684645716,-500.0,0.00017534,2]
[357065937,1743684645726,-500.0,0.00017534,2]
[357065939,1743684645736,-500.0,0.00017534,2]
[357065941,1743684645746,-500.0,0.00017534,2]
[357065943,1743684645757,-500.0,0.00017534,2]
[357065945,1743684645767,-500.0,0.00017534,2]
[357065947,1743684645777,-500.0,0.00017534,2]
[357065948,1743684645787,-500.0,0.00017534,2]
[357065949,1743684645796,-500.0,0.00017534,2]
[357065950,1743684645806,-500.0,0.00017534,2]
[357065951,1743684645816,-500.0,0.00017534,2]
[357065952,1743684645826,-172.708232,0.00017534,2]
[357065954,1743684645836,-172.708232,0.00017534,2]
[357065956,1743684645847,-172.708232,0.00017534,2]
[357065957,1743684645856,-172.708232,0.00017534,2]
[357065958,1743684645866,-540.45,0.00017534,2]
[357065959,1743684645876,-500.0,0.00017534,2]
[357065960,1743684645886,-500.0,0.00017534,2]
[357065962,1743684645896,-500.0,0.00017534,2]
[357065963,1743684645906,-500.0,0.00017534,2]
[357065964,1743684645918,-500.0,0.00017534,2]
[357065965,1743684645928,-500.0,0.00017534,2]
[357065966,1743684645940,-500.0,0.00017534,2]
[357065967,1743684645950,-500.0,0.00017534,2]
[357065969,1743684645960,-500.0,0.00017534,2]
[357065972,1743684645974,-500.0,0.00017534,2]
[357065974,1743684645985,-500.0,0.00017534,2]
[357065976,1743684645994,-502.92,0.00017534,2]
[357065977,1743684646004,-335.2173004,0.00017534,2]
[357065979,1743684646015,-500.0,0.00017534,2]
[357065981,1743684646024,-500.0,0.00017534,2]
[357065983,1743684646034,-500.0,0.00017534,2]
[357065985,1743684646044,-500.0,0.00017534,2]
[357065988,1743684646055,-500.0,0.00017534,2]
[357065989,1743684646064,-500.0,0.00017534,2]
[357065991,1743684646074,-500.0,0.00017534,2]
[357065993,1743684646084,-500.0,0.00017534,2]
[357065995,1743684646094,-500.0,0.00017534,2]
[357065997,1743684646104,-500.0,0.00017534,2]
[357065999,1743684646114,-500.0,0.00017534,2]
[357066000,1743684646126,-500.0,0.00017534,2]
[357066001,1743684646137,-500.0,0.00017534,2]
[357066002,1743684646148,-500.0,0.00017534,2]
[357066003,1743684646158,-500.0,0.00017534,2]
[357066004,1743684646168,-500.0,0.00017534,2]
[357066005,1743684646182,-500.0,0.00017534,2]
[357066006,1743684646192,-500.0,0.00017534,2]
[357066007,1743684646202,-500.0,0.00017534,2]
[357066008,1743684646212,-500.0,0.00017534,2]
[357066009,1743684646222,-500.0,0.00017534,2]
[357066010,1743684646232,-500.0,0.00017534,2]
[357066011,1743684646242,-451.69477487,0.00017534,2]
[357066012,1743684646252,-356.34241921,0.00017534,2]
[357066013,1743684646262,-500.0,0.00017534,2]
[357066014,1743684646273,-500.0,0.00017534,2]
[357066015,1743684646283,-500.0,0.00017534,2]
[357066016,1743684646293,-500.0,0.00017534,2]
[357066017,1743684646303,-500.0,0.00017534,2]
[357066019,1743684646313,-620.82,0.00017534,2]
[357066021,1743684646323,-500.0,0.00017534,2]
[357066023,1743684646333,-500.0,0.00017534,2]
[357066024,1743684646343,-500.0,0.00017534,2]
[357066025,1743684646352,-500.0,0.00017534,2]
[357066026,1743684646362,-500.0,0.00017534,2]
[357066027,1743684646372,-500.0,0.00017534,2]
[357066028,1743684646381,-500.0,0.00017534,2]
[357066029,1743684646391,-574.63054,0.00017534,2]
[357066030,1743684646401,-574.63055,0.00017534,2]
[357066031,1743684646410,-500.0,0.00017534,2]
[357066032,1743684646421,-500.0,0.00017534,2]
[357066033,1743684646433,-500.0,0.00017534,2]
[357066034,1743684646443,-500.0,0.00017534,2]
[357066035,1743684646453,-500.0,0.00017534,2]
[357066036,1743684646463,-500.0,0.00017534,2]
[357066037,1743684646472,-500.0,0.00017534,2]
[357066038,1743684646482,-538.42655613,0.00017534,2]
[357066039,1743684646492,-500.0,0.00017534,2]
[357066040,1743684646505,-500.0,0.00017534,2]
[357066041,1743684646515,-534.12856041,0.00017534,2]
[357066042,1743684646524,-523.4590596,0.00017534,2]
[357066043,1743684646535,-500.0,0.00017534,2]
[357066044,1743684646545,-500.0,0.00017534,2]
[357066045,1743684646554,-500.0,0.00017534,2]
[357066046,1743684646564,-500.0,0.00017534,2]
[357066047,1743684646573,-617.52,0.00017534,2]
[357066048,1743684646583,-500.0,0.00017534,2]
[357066049,1743684646594,-500.0,0.00017534,2]
[357066050,1743684646706,-500.0,0.00017534,2]
[357066051,1743684646719,-543.51,0.00017534,2]
[357066052,1743684646729,-500.0,0.00017534,2]
[357066053,1743684646740,-500.0,0.00017534,2]
[357066054,1743684646751,-1333.2,0.00017534,2]
[357066055,1743684646763,-939.32,0.00017534,2]
[357066056,1743684646775,-500.0,0.00017534,2]
[357066057,1743684646785,-776.84,0.00017534,2]
[357066058,1743684646794,-500.0,0.00017534,2]
[357066059,1743684646804,-1578.42,0.00017534,2]
[357066060,1743684646814,-500.0,0.00017534,2]
[357066061,1743684646824,-737.08,0.00017534,2]
[357066062,1743684646834,-602.57985915,0.00017534,2]
[357066063,1743684646843,-658.75,0.00017534,2]
[357066064,1743684646853,-804.66,0.00017534,2]
[357066065,1743684646864,-164.97,0.00017534,2]
[357066066,1743684646874,-500.0,0.00017534,2]
[357066067,1743684646885,-549.69,0.00017534,2]
[357066068,1743684646895,-681.42,0.00017534,2]
[357066069,1743684646904,-1658.04,0.00017534,2]
[357066070,1743684646914,-500.0,0.00017534,2]
[357066071,1743684646924,-500.0,0.00017534,2]
[357066072,1743684646937,-500.0,0.00017534,2]
[357066073,1743684646947,-3229.2,0.00017534,2]
[357066074,1743684646957,-644.71,0.00017534,2]
[357066075,1743684646969,-1492.91,0.00017534,2]
[357066076,1743684646986,-500.0,0.00017534,2]
[357066077,1743684646996,-500.0,0.00017534,2]
[357066078,1743684647007,-500.0,0.00017534,2]
[357066079,1743684647018,-4305.14,0.00017534,2]
[357066080,1743684647028,-1043.2,0.00017534,2]
[357066081,1743684647038,-344.37603783,0.00017534,2]
[357066082,1743684647050,-5897.63,0.00017534,2]
[357066083,1743684647065,-500.0,0.00017534,2]
[357066084,1743684647084,-500.0,0.00017534,2]
[357066085,1743684647099,-2101.76,0.00017534,2]
[357066086,1743684647109,-500.0,0.00017534,2]
[357066087,1743684647120,-1070.64,0.00017534,2]
[357066088,1743684647130,-500.0,0.00017534,2]
[357066089,1743684647140,-562.06,0.00017534,2]
[357066090,1743684647150,-500.0,0.00017534,2]
[357066091,1743684647160,-500.0,0.00017534,2]
[357066092,1743684647170,-500.0,0.00017534,2]
[357066093,1743684647183,-500.0,0.00017534,2]
[357066094,1743684647193,-591.48,0.00017534,2]
[357066095,1743684647203,-500.0,0.00017534,2]
[357066096,1743684647213,-1155.32,0.00017534,2]
[357066097,1743684647223,-542.63,0.00017534,2]
[357066098,1743684647234,-523.70898012,0.00017534,2]
[357066099,1743684647244,-500.0,0.00017534,2]
[357066100,1743684647254,-3432.19,0.00017534,2]
[357066101,1743684647264,-1341.41,0.00017534,2]
[357066102,1743684647274,-1613.8,0.00017534,2]
[357066103,1743684647285,-500.0,0.00017534,2]
[357066104,1743684647295,-500.0,0.00017534,2]
[357066105,1743684647306,-500.0,0.00017534,2]
[357066106,1743684647316,-675.31,0.00017534,2]
[357066107,1743684647327,-616.6,0.00017534,2]
[357066108,1743684647339,-500.0,0.00017534,2]
[357066109,1743684647349,-500.0,0.00017534,2]
[357066110,1743684647359,-500.0,0.00017534,2]
[357066111,1743684647369,-1262.01,0.00017534,2]
[357066112,1743684647380,-500.0,0.00017534,2]
[357066113,1743684647390,-500.0,0.00017534,2]
[357066114,1743684647400,-500.0,0.00017534,2]
[357066115,1743684647410,-500.0,0.00017534,2]
[357066116,1743684647420,-500.0,0.00017534,2]
[357066117,1743684647435,-3696.95,0.00017534,2]
[357066118,1743684647445,-500.0,0.00017534,2]
[357066119,1743684647455,-500.0,0.00017534,2]
[357066120,1743684647465,-500.0,0.00017534,2]
[357066121,1743684647475,-500.0,0.00017534,2]
[357066122,1743684647485,-101437.56,0.00017534,2]
[357066123,1743684647496,-500.0,0.00017534,2]
[357066124,1743684647505,-714.09,0.00017534,2]
[357066125,1743684647515,-500.0,0.00017534,2]
[357066126,1743684647525,-546.55,0.00017534,2]
[357066127,1743684647535,-500.0,0.00017534,2]
[357066128,1743684647546,-500.0,0.00017534,2]
[357066129,1743684647556,-500.0,0.00017534,2]
[357066130,1743684647566,-563.87,0.00017534,2]
[357066131,1743684647576,-500.0,0.00017534,2]
[357066132,1743684647586,-591.16,0.00017534,2]
[357066133,1743684647596,-746.01,0.00017534,2]
[357066134,1743684647606,-500.0,0.00017593,2]
[357066135,1743684647615,-500.0,0.00017593,2]
[357066136,1743684647625,-500.0,0.00017593,2]
[357066137,1743684647635,-1641.0,0.00017632,2]
[357066138,1743684647645,-2219.41,0.00017632,2]
[357066139,1743684647655,-401.0,0.00017632,2]
[357066140,1743684647664,-627.62478089,0.00017665,2]
[357066141,1743684647674,-500.0,0.00017665,2]
[357066142,1743684647686,-505.46047999,0.00017665,2]
[357066143,1743684647695,-809.80550537,0.00017665,2]
[357066144,1743684647704,-151.96644784,0.00017665,2]
[357066145,1743684647714,-151.0,0.000177,2]
[357066146,1743684647724,-214.64083326,0.000177,2]
[357066147,1743684647734,-1072.40156372,0.00017762,2]
[357066148,1743684647744,-151.0,0.00017797,2]
[357066149,1743684647754,-151.0,0.000178,2]
[357066150,1743684647764,-574.41674254,0.00017802,2]
[357066151,1743684647773,-290.95,0.00017808,2]
[357066152,1743684647782,-500.0,0.00017808,2]
[357066153,1743684647792,-500.0,0.00017808,2]
[357066154,1743684647801,-500.0,0.00017808,2]
[357066155,1743684647811,-500.0,0.00017808,2]
[357066156,1743684647820,-500.0,0.00017808,2]
[357066157,1743684647830,-500.0,0.00017808,2]
[357066158,1743684647839,-500.0,0.00017808,2]
[357066159,1743684647848,-500.0,0.00017808,2]
[357066160,1743684647857,-500.0,0.00017808,2]
[357066161,1743684647866,-500.0,0.00017808,2]
[357066162,1743684647876,-500.0,0.00017808,2]
[357066163,1743684647885,-500.0,0.00017808,2]
[357066164,1743684647895,-500.0,0.00017808,2]
[357066165,1743684647905,-500.0,0.00017808,2]
[357066166,1743684647914,-500.0,0.00017808,2]
[357066167,1743684647924,-170.04,0.00017808,2]
[357066168,1743684647936,-500.0,0.00017808,2]
[357066169,1743684647947,-172.708232,0.00017808,2]
[357066170,1743684647957,-540.45,0.00017808,2]
[357066171,1743684647967,-172.708232,0.00017808,2]
[357066172,1743684647977,-500.0,0.00017808,2]
[357066173,1743684647991,-500.0,0.00017808,2]
[357066174,1743684648000,-500.0,0.00017808,2]
[357066175,1743684648011,-500.0,0.00017808,2]
[357066176,1743684648020,-500.0,0.00017808,2]
[357066177,1743684648030,-500.0,0.00017808,2]
[357066178,1743684648040,-500.0,0.00017808,2]
[357066179,1743684648050,-500.0,0.00017808,2]
[357066180,1743684648060,-500.0,0.00017808,2]
[357066181,1743684648073,-500.0,0.00017808,2]
[357066182,1743684648083,-500.0,0.00017808,2]
[357066183,1743684648093,-502.92,0.00017808,2]
[357066184,1743684648103,-500.0,0.00017808,2]
[357066185,1743684648112,-500.0,0.00017808,2]
[357066186,1743684648122,-162.16356795,0.00017808,2]
[357066187,1743684648132,-500.0,0.00017808,2]
[357066188,1743684648142,-500.0,0.00017808,2]
[357066189,1743684648151,-500.0,0.00017808,2]
[357066190,1743684648161,-500.0,0.00017808,2]
[357066191,1743684648171,-500.0,0.00017808,2]
[357066192,1743684648184,-500.0,0.00017808,2]
[357066193,1743684648194,-500.0,0.00017808,2]
[357066194,1743684648204,-500.0,0.00017808,2]
[357066195,1743684648214,-500.0,0.00017808,2]
[357066196,1743684648224,-512.23633692,0.00017808,2]
[357066197,1743684648233,-500.0,0.00017808,2]
[357066198,1743684648243,-500.0,0.00017808,2]
[357066199,1743684648252,-500.0,0.00017808,2]
[357066200,1743684648263,-500.0,0.00017808,2]
[357066201,1743684648272,-621.31503637,0.00017808,2]
[357066202,1743684648282,-500.0,0.00017808,2]
[357066203,1743684648291,-500.0,0.00017808,2]
[357066204,1743684648301,-500.0,0.00017808,2]
[357066205,1743684648311,-500.0,0.00017808,2]
[357066206,1743684648321,-500.0,0.00017808,2]
[357066207,1743684648331,-389.71,0.00017808,2]
[357066208,1743684648340,-500.0,0.00017808,2]
[357066209,1743684648351,-500.0,0.00017808,2]
[357066210,1743684648361,-206.65,0.00017808,2]
[357066211,1743684648371,-500.0,0.00017808,2]
[357066212,1743684648381,-500.0,0.00017808,2]
[357066213,1743684648392,-500.0,0.00017808,2]
[357066214,1743684648402,-500.0,0.00017808,2]
[357066215,1743684648411,-500.0,0.00017808,2]
[357066216,1743684648421,-500.0,0.00017808,2]
[357066217,1743684648433,-500.0,0.00017808,2]
[357066218,1743684648443,-500.0,0.00017808,2]
[357066219,1743684648453,-500.0,0.00017808,2]
[357066220,1743684648462,-500.0,0.00017808,2]
[357066221,1743684648472,-500.0,0.00017808,2]
[357066222,1743684648482,-500.0,0.00017808,2]
[357066223,1743684648491,-500.0,0.00017808,2]
[357066224,1743684648500,-500.0,0.00017808,2]
[357066225,1743684648510,-500.0,0.00017808,2]
[357066226,1743684648520,-500.0,0.00017808,2]
[357066227,1743684648530,-500.0,0.00017808,2]
[357066228,1743684648540,-500.0,0.00017808,2]